fUSD/lending_fUSD_20250108
["ID","MTS","AMOUNT","RATE_DAILY","PERIOD"]
[348193425,1736377842415,-500.0,9.998e-05,2]
[348193426,1736377842424,-500.0,9.998e-05,2]
[348193427,1736377842434,-500.0,9.998e-05,2]
[348193428,1736377842443,-384.63211105,9.998e-05,2]
[348193429,1736377842466,-115.36788895,9.998e-05,2]
[348193430,1736377842476,-500.0,9.998e-05,2]
[348193431,1736377842485,-500.0,9.998e-05,2]
[348193432,1736377842494,-500.0,9.998e-05,2]
[348193433,1736377842503,-500.0,9.998e-05,2]
[348193434,1736377842513,-500.0,9.998e-05,2]
[348193435,1736377842523,-468.65,9.998e-05,2]
[348193436,1736377842532,-500.0,9.998e-05,2]
[348193437,1736377842541,-500.0,9.998e-05,2]
[348193438,1736377842550,-500.0,9.998e-05,2]
[348193439,1736377842560,-500.0,9.998e-05,2]
[348193440,1736377842569,-500.0,9.998e-05,2]
[348193441,1736377842578,-1047.13,9.998e-05,2]
[348193442,1736377842588,-500.0,9.998e-05,2]
[348193443,1736377842597,-500.0,9.998e-05,2]
[348193444,1736377842606,-500.0,9.998e-05,2]
[348193445,1736377842615,-500.0,9.998e-05,2]
[348193446,1736377842625,-513.74321975,9.998e-05,2]
[348193447,1736377842635,-190.17781564,9.998e-05,2]
[348193448,1736377842644,-500.0,9.998e-05,2]
[348193449,1736377842653,-500.0,9.998e-05,2]
[348193450,1736377842663,-500.0,9.998e-05,2]
[348193451,1736377842672,-500.0,9.998e-05,2]
[348193452,1736377842681,-500.0,9.998e-05,2]
[348193453,1736377842691,-500.0,9.998e-05,2]
[348193454,1736377842701,-967.38,9.998e-05,2]
[348193455,1736377842710,-500.0,9.998e-05,2]
[348193456,1736377842720,-1993.86,9.998e-05,2]
[348193457,1736377842729,-1374.22,9.998e-05,2]
[348193458,1736377842739,-2822.91,9.998e-05,2]
[348193459,1736377842749,-2822.91,9.998e-05,2]
[348193460,1736377842758,-2922.68,9.998e-05,2]
[348193461,1736377842767,-500.0,9.998e-05,2]
[348193462,1736377842777,-1667.56,9.998e-05,2]
[348193463,1736377842786,-2167.12,9.998e-05,2]
[348193464,1736377842795,-500.0,9.998e-05,2]
[348193465,1736377842804,-500.0,9.998e-05,2]
[348193466,1736377842814,-500.0,9.998e-05,2]
[348193467,1736377842823,-500.0,9.998e-05,2]
[348193468,1736377842833,-500.0,9.998e-05,2]
[348193469,1736377842842,-2636.01,9.998e-05,2]
[348193470,1736377842851,-1169.3,9.998e-05,2]
[348193471,1736377842860,-1351.56,9.998e-05,2]
[348193472,1736377842869,-1299.29,9.998e-05,2]
[348193473,1736377842878,-1339.56,9.998e-05,2]
[348193474,1736377842887,-1269.65,9.998e-05,2]
[348193475,1736377842898,-500.0,9.998e-05,2]
[348193476,1736377842907,-500.0,9.999e-05,2]
[348193477,1736377842917,-2011.62,9.999e-05,2]
[348193478,1736377842927,-973.91,9.999e-05,2]
[348193479,1736377842937,-890.44,9.999e-05,2]
[348193480,1736377842947,-500.0,9.999e-05,2]
[348193482,1736377842957,-1416.3,9.999e-05,2]
[348193484,1736377842966,-2088.21,9.999e-05,2]
[348193487,1736377842976,-1178.71,9.999e-05,2]
[348193488,1736377842985,-813.98,9.999e-05,2]
[348193489,1736377842997,-597.58,9.999e-05,2]
[348193490,1736377843007,-500.0,9.999e-05,2]
[348193491,1736377843017,-500.0,9.999e-05,2]
[348193492,1736377843026,-500.0,9.999e-05,2]
[348193493,1736377843035,-500.0,9.999e-05,2]
[348193494,1736377843045,-500.0,9.999e-05,2]
[348193495,1736377843054,-500.0,9.999e-05,2]
[348193496,1736377843064,-500.0,9.999e-05,2]
[348193497,1736377843073,-500.0,9.999e-05,2]
[348193498,1736377843083,-233.15,9.999e-05,2]
[348193499,1736377843092,-500.0,9.999e-05,2]
[348193500,1736377843102,-500.0,9.999e-05,2]
[348193501,1736377843112,-705.26,9.999e-05,2]
[348193502,1736377843122,-1284.8,9.999e-05,2]
[348193503,1736377843132,-13926.32107556,0.0001,2]
[348193504,1736377843146,-89645.70050052,0.0001,2]
[348193505,1736377843158,-3779.0,0.0001,2]
[348193506,1736377843170,-2060.0,0.0001,2]
[348193507,1736377843183,-530487.49342611,0.0001,2]
[348193515,1736377843923,-878.92,9.996e-05,2]
[348193516,1736377843933,-1982.85,9.997e-05,2]
[348193517,1736377843943,-836.45,9.998e-05,2]
[348193518,1736377843953,-9342.75657437,0.0001,2]
[348193519,1736377843976,-4805.55,0.0001,2]
[348193520,1736377843987,-1651.72498233,0.0001,2]
[348193521,1736377843999,-1108.05999929,0.0001,2]
[348193522,1736377844084,-343.03031994,0.0001,2]
[348193523,1736377844096,-319.24878098,0.0001,2]
[348193524,1736377844178,-566.84138598,0.0001,2]
[348193525,1736377844447,-452.59625896,0.0001,2]
[348193526,1736377846255,-500.0,9.996e-05,2]
[348193527,1736377846268,-2972.66,9.996e-05,2]
[348193528,1736377846282,-500.0,9.996e-05,2]
[348193529,1736377846297,-14284.63999985,0.0001,2]
[348193530,1736377846460,-458156.19970378,0.0001,2]
[348193546,1736378227530,170.65,7.264e-05,2]
[348193547,1736378447592,-1801.44,0.00019,90]
[348193548,1736378447638,-239.84678763,0.0002,60]
[348193549,1736378457848,-2117.11,0.000136,31]
[348193550,1736378457876,-2117.11,0.000136,31]
[348193551,1736378457903,-2117.11,0.000136,31]
[348193552,1736378457929,-2117.11,0.000136,31]
[348193553,1736378457957,-2117.11,0.000136,31]
[348193554,1736378457985,-2117.11,0.000136,31]
[348193555,1736378458014,-2117.11,0.000136,31]
[348193556,1736378458042,-2117.11,0.000136,31]
[348193557,1736378458068,-2117.11,0.000136,31]
[348193558,1736378458095,-2117.11,0.000136,31]
[348193559,1736378458122,-2117.11,0.000136,31]
[348193560,1736378458150,-2117.11,0.000136,31]
[348193561,1736378458178,-2117.11,0.000136,31]
[348193562,1736378458205,-2117.11,0.000136,31]
[348193563,1736378458232,-2117.11,0.000136,31]
[348193564,1736378458262,-2117.11,0.000136,31]
[348193565,1736378458288,-1303.3,0.00013698,30]
[348193566,1736378458312,-1303.3,0.00013698,30]
[348193567,1736378458339,-1303.3,0.00013698,30]
[348193568,1736378458362,-1303.3,0.00013698,30]
[348193569,1736378458385,-1303.3,0.00013698,30]
[348193570,1736378458409,-1303.3,0.00013698,30]
[348193571,1736378458433,-1303.3,0.00013698,30]
[348193572,1736378458457,-1303.3,0.00013698,30]
[348193573,1736378458480,-1303.3,0.00013698,30]
[348193574,1736378458504,-1303.3,0.00013698,30]
[348193575,1736378458529,-1303.3,0.00013698,30]
[348193576,1736378458553,-1303.3,0.00013698,30]
[348193577,1736378458577,-1303.3,0.00013698,30]
[348193578,1736378458601,-1303.3,0.00013698,30]
[348193579,1736378458637,-1303.3,0.00013832,30]
[348193580,1736378458668,-1303.3,0.00014106,30]
[348193581,1736378458700,-232.15321237,0.0001438,30]
[348193582,1736378614330,-489.4,8.922e-05,2]
[348193584,1736378650693,943.91,8.219e-05,2]
[348193613,1736378865250,970.02,8.865e-05,2]
[348193614,1736378895216,200.0,8.846e-05,2]
[348193615,1736378904184,458.95,8.895e-05,2]
[348193623,1736378995395,9437.72,8.908e-05,2]
[348193624,1736379026904,2097.0,0.0002,120]
[348193630,1736379032368,-250.0,8.858e-05,2]
[348193631,1736379032377,-250.0,8.869e-05,2]
[348193632,1736379032386,-293.07877249,8.907e-05,2]
[348193634,1736379032422,-6.92122751,8.907e-05,2]
[348193635,1736379032432,-789.77877249,8.908e-05,2]
[348193636,1736379032443,-1703.61103245,8.908e-05,2]
[348193637,1736379032460,-3259.93952186,8.908e-05,2]
[348193639,1736379032591,-8698.9506732,8.908e-05,2]
[348193640,1736379032600,-250.0,8.942e-05,2]
[348193641,1736379032610,-3218.34740743,8.953e-05,2]
[348193642,1736379032629,-880.44259257,8.953e-05,2]
[348193643,1736379032638,-163.73,8.97e-05,2]
[348193644,1736379032648,-150.0,9e-05,2]
[348193645,1736379032657,-251.09406275,9e-05,2]
[348193646,1736379032667,-198.64955927,9e-05,2]
[348193647,1736379032678,-1683.35044073,9e-05,2]
[348193648,1736379032687,-1000.0,9.027e-05,2]
[348193649,1736379032697,-912.69,9.097e-05,2]
[348193650,1736379032706,-296.61,9.229e-05,2]
[348193651,1736379032715,-6722.34955927,9.408e-05,2]
[348193652,1736379032726,-17405.65044073,9.408e-05,2]
[348193653,1736379032735,-607.793,9.5e-05,2]
[348193654,1736379032744,-150.0,9.728e-05,2]
[348193655,1736379032754,-4706.127,9.729e-05,2]
[348193656,1736379032764,-289.834,9.729e-05,2]
[348193657,1736379032773,-152.17,9.729e-05,2]
[348193658,1736379032782,-136.98587979,9.798e-05,2]
[348193659,1736379032813,-283.01412021,9.798e-05,2]
[348193660,1736379032822,-806.4637249,9.8e-05,2]
[348193661,1736379032832,-2224.4814,9.897e-05,2]
[348193663,1736379032841,-3144.4001,9.898e-05,2]
[348193664,1736379032850,-4959.1477,9.899e-05,2]
[348193666,1736379032859,-377.78139855,9.971e-05,2]
[348193668,1736379032869,-500.0,9.973e-05,2]
[348193670,1736379032878,-500.0,9.973e-05,2]
[348193672,1736379032887,-377.78139855,9.973e-05,2]
[348193673,1736379032896,-377.78139855,9.974e-05,2]
[348193675,1736379032905,-377.78139855,9.975e-05,2]
[348193677,1736379032914,-200.0,9.976e-05,2]
[348193679,1736379032924,-377.78139855,9.981e-05,2]
[348193681,1736379032933,-377.78139855,9.991e-05,2]
[348193683,1736379032943,-692.481898,9.996e-05,2]
[348193684,1736379032952,-726.749382,9.996e-05,2]
[348193686,1736379032961,-522.9,9.996e-05,2]
[348193688,1736379032970,-500.0,9.996e-05,2]
[348193690,1736379032980,-500.0,9.996e-05,2]
[348193692,1736379032989,-500.0,9.996e-05,2]
[348193693,1736379032997,-1270.32,9.996e-05,2]
[348193695,1736379033007,-1572.24,9.996e-05,2]
[348193697,1736379033017,-758.74,9.996e-05,2]
[348193699,1736379033027,-500.0,9.996e-05,2]
[348193700,1736379033037,-500.0,9.996e-05,2]
[348193702,1736379033047,-500.0,9.996e-05,2]
[348193704,1736379033056,-500.0,9.996e-05,2]
[348193706,1736379033066,-1367.12,9.996e-05,2]
[348193709,1736379033076,-500.0,9.996e-05,2]
[348193711,1736379033086,-500.0,9.996e-05,2]
[348193714,1736379033096,-500.0,9.996e-05,2]
[348193717,1736379033105,-500.0,9.996e-05,2]
[348193720,1736379033114,-500.0,9.996e-05,2]
[348193724,1736379033125,-256.25124528,9.996e-05,2]
[348193726,1736379033134,-500.0,9.996e-05,2]
[348193728,1736379033144,-500.0,9.996e-05,2]
[348193732,1736379033154,-500.0,9.996e-05,2]
[348193735,1736379033164,-268.99,9.996e-05,2]
[348193737,1736379033174,-500.0,9.996e-05,2]
[348193740,1736379033184,-500.0,9.996e-05,2]
[348193743,1736379033196,-1008.29,9.996e-05,2]
[348193746,1736379033205,-500.0,9.996e-05,2]
[348193747,1736379033216,-500.0,9.996e-05,2]
[348193749,1736379033227,-500.0,9.996e-05,2]
[348193751,1736379033236,-500.0,9.996e-05,2]
[348193754,1736379033245,-500.0,9.996e-05,2]
[348193756,1736379033255,-500.0,9.996e-05,2]
[348193759,1736379033265,-608.55,9.996e-05,2]
[348193761,1736379033275,-2138.49,9.996e-05,2]
[348193763,1736379033284,-500.0,9.996e-05,2]
[348193764,1736379033294,-500.0,9.996e-05,2]
[348193766,1736379033303,-500.0,9.996e-05,2]
[348193768,1736379033312,-500.0,9.996e-05,2]
[348193770,1736379033321,-500.0,9.996e-05,2]
[348193772,1736379033331,-558.54,9.996e-05,2]
[348193773,1736379033340,-1499.26,9.996e-05,2]
[348193775,1736379033350,-500.0,9.996e-05,2]
[348193777,1736379033359,-762.8,9.996e-05,2]
[348193779,1736379033369,-739.03,9.996e-05,2]
[348193781,1736379033378,-2887.2,9.996e-05,2]
[348193782,1736379033387,-500.0,9.996e-05,2]
[348193784,1736379033396,-500.0,9.996e-05,2]
[348193786,1736379033406,-500.0,9.996e-05,2]
[348193788,1736379033415,-645.0072589,9.996e-05,2]
[348193790,1736379033424,-850.78,9.996e-05,2]
[348193792,1736379033433,-500.0,9.996e-05,2]
[348193794,1736379033443,-500.0,9.996e-05,2]
[348193795,1736379033452,-3390.13,9.996e-05,2]
[348193797,1736379033461,-500.0,9.996e-05,2]
[348193799,1736379033471,-500.0,9.996e-05,2]
[348193801,1736379033480,-500.0,9.996e-05,2]
[348193803,1736379033490,-500.0,9.996e-05,2]
[348193805,1736379033501,-500.0,9.996e-05,2]
[348193806,1736379033510,-500.0,9.996e-05,2]
[348193807,1736379033520,-500.0,9.996e-05,2]
[348193808,1736379033529,-500.0,9.996e-05,2]
[348193809,1736379033541,-500.0,9.996e-05,2]
[348193811,1736379033550,-500.0,9.996e-05,2]
[348193813,1736379033560,-500.0,9.996e-05,2]
[348193815,1736379033569,-500.0,9.996e-05,2]
[348193817,1736379033580,-500.0,9.996e-05,2]
[348193818,1736379033589,-500.0,9.996e-05,2]
[348193820,1736379033598,-1845.08,9.996e-05,2]
[348193822,1736379033607,-500.0,9.996e-05,2]
[348193824,1736379033617,-1037.82,9.996e-05,2]
[348193826,1736379033626,-500.0,9.996e-05,2]
[348193828,1736379033636,-500.0,9.996e-05,2]
[348193830,1736379033645,-2383.81,9.996e-05,2]
[348193831,1736379033654,-500.0,9.996e-05,2]
[348193833,1736379033663,-544.2,9.996e-05,2]
[348193835,1736379033672,-500.0,9.996e-05,2]
[348193837,1736379033681,-1358.86,9.996e-05,2]
[348193839,1736379033691,-500.0,9.996e-05,2]
[348193841,1736379033700,-1920.32,9.996e-05,2]
[348193842,1736379033709,-500.0,9.996e-05,2]
[348193843,1736379033719,-3120.67,9.996e-05,2]
[348193844,1736379033728,-500.0,9.996e-05,2]
[348193845,1736379033737,-693.87,9.996e-05,2]
[348193846,1736379033747,-500.0,9.996e-05,2]
[348193847,1736379033756,-500.0,9.996e-05,2]
[348193848,1736379033765,-717.96,9.996e-05,2]
[348193849,1736379033775,-673.64,9.996e-05,2]
[348193850,1736379033784,-500.0,9.996e-05,2]
[348193851,1736379033793,-593.68,9.996e-05,2]
[348193852,1736379033803,-2777.65,9.996e-05,2]
[348193853,1736379033812,-500.0,9.996e-05,2]
[348193854,1736379033821,-625.01,9.996e-05,2]
[348193855,1736379033830,-1689.29,9.996e-05,2]
[348193857,1736379033839,-500.0,9.996e-05,2]
[348193859,1736379033849,-500.0,9.996e-05,2]
[348193861,1736379033858,-948.29,9.996e-05,2]
[348193863,1736379033867,-500.0,9.996e-05,2]
[348193865,1736379033877,-500.0,9.996e-05,2]
[348193867,1736379033886,-3014.49,9.996e-05,2]
[348193869,1736379033895,-500.0,9.996e-05,2]
[348193871,1736379033904,-500.0,9.996e-05,2]
[348193873,1736379033913,-500.0,9.996e-05,2]
[348193874,1736379033922,-797.85,9.996e-05,2]
[348193877,1736379033932,-500.0,9.996e-05,2]
[348193878,1736379033941,-2076.41,9.996e-05,2]
[348193880,1736379033951,-2122.7,9.996e-05,2]
[348193882,1736379033960,-500.0,9.996e-05,2]
[348193884,1736379033971,-2105.99,9.996e-05,2]
[348193886,1736379033980,-2398.26,9.996e-05,2]
[348193888,1736379033990,-500.0,9.996e-05,2]
[348193890,1736379033999,-1667.33,9.996e-05,2]
[348193892,1736379034009,-577.93861152,9.996e-05,2]
[348193894,1736379034019,-1231.63,9.996e-05,2]
[348193896,1736379034027,-500.0,9.996e-05,2]
[348193898,1736379034037,-500.0,9.996e-05,2]
[348193900,1736379034046,-990.77,9.996e-05,2]
[348193902,1736379034056,-771.63,9.996e-05,2]
[348193904,1736379034065,-1460.72,9.996e-05,2]
[348193906,1736379034074,-1227.91,9.996e-05,2]
[348193908,1736379034083,-2665.01,9.996e-05,2]
[348193910,1736379034093,-500.0,9.996e-05,2]
[348193912,1736379034102,-500.0,9.996e-05,2]
[348193914,1736379034111,-500.0,9.996e-05,2]
[348193916,1736379034121,-559.22,9.996e-05,2]
[348193918,1736379034130,-500.0,9.996e-05,2]
[348193920,1736379034139,-1406.6,9.996e-05,2]
[348193922,1736379034148,-789.78,9.996e-05,2]
[348193924,1736379034157,-500.0,9.996e-05,2]
[348193925,1736379034167,-500.0,9.996e-05,2]
[348193928,1736379034177,-500.0,9.996e-05,2]
[348193929,1736379034187,-1703.18,9.996e-05,2]
[348193931,1736379034196,-500.0,9.996e-05,2]
[348193933,1736379034205,-573.35,9.996e-05,2]
[348193935,1736379034214,-500.0,9.996e-05,2]
[348193937,1736379034223,-500.0,9.996e-05,2]
[348193939,1736379034233,-708.22,9.996e-05,2]
[348193941,1736379034242,-500.0,9.996e-05,2]
[348193943,1736379034251,-2561.05,9.996e-05,2]
[348193945,1736379034261,-500.0,9.996e-05,2]
[348193947,1736379034271,-500.0,9.996e-05,2]
[348193949,1736379034280,-401.71,9.996e-05,2]
[348193951,1736379034289,-1508.6,9.996e-05,2]
[348193953,1736379034298,-500.0,9.996e-05,2]
[348193955,1736379034306,-500.0,9.996e-05,2]
[348193957,1736379034315,-500.0,9.996e-05,2]
[348193959,1736379034324,-500.0,9.996e-05,2]
[348193961,1736379034333,-500.78585461,9.997e-05,2]
[348193963,1736379034342,-503.30992833,9.997e-05,2]
[348193965,1736379034351,-500.80795696,9.997e-05,2]
[348193967,1736379034359,-639.90165029,9.997e-05,2]
[348193969,1736379034368,-198.17610873,9.997e-05,2]
[348193971,1736379034375,-500.0,9.997e-05,2]
[348193973,1736379034384,-502.02745025,9.997e-05,2]
[348193975,1736379034392,-206.86468456,9.997e-05,2]
[348193977,1736379034400,-500.0,9.997e-05,2]
[348193979,1736379034409,-209.36669765,9.997e-05,2]
[348193981,1736379034418,-500.0,9.997e-05,2]
[348193983,1736379034427,-500.62021904,9.997e-05,2]
[348193985,1736379034436,-502.12075007,9.997e-05,2]
[348193986,1736379034444,-500.96804778,9.997e-05,2]
[348193988,1736379034453,-503.13166563,9.997e-05,2]
[348193990,1736379034462,-501.99067918,9.997e-05,2]
[348193992,1736379034470,-500.69368204,9.997e-05,2]
[348193994,1736379034479,-502.85718823,9.997e-05,2]
[348193996,1736379034488,-501.66983493,9.997e-05,2]
[348193998,1736379034499,-501.1098614,9.997e-05,2]
[348194000,1736379034507,-397.99543455,9.997e-05,2]
[348194002,1736379034513,-502.51876585,9.997e-05,2]
[348194003,1736379034523,-501.97774188,9.997e-05,2]
[348194005,1736379034531,-503.37953518,9.997e-05,2]
[348194007,1736379034540,-502.2692072,9.997e-05,2]
[348194008,1736379034547,-502.4382404,9.997e-05,2]
[348194010,1736379034555,-325.25,9.997e-05,2]
[348194012,1736379034562,-500.0,9.997e-05,2]
[348194014,1736379034571,-500.0,9.997e-05,2]
[348194016,1736379034581,-500.0,9.997e-05,2]
[348194018,1736379034589,-500.0,9.997e-05,2]
[348194020,1736379034597,-500.0,9.997e-05,2]
[348194022,1736379034605,-219.94,9.997e-05,2]
[348194024,1736379034612,-500.0,9.997e-05,2]
[348194025,1736379034619,-500.0,9.997e-05,2]
[348194027,1736379034627,-500.0,9.997e-05,2]
[348194029,1736379034635,-500.0,9.997e-05,2]
[348194031,1736379034644,-500.0,9.997e-05,2]
[348194033,1736379034651,-500.0,9.997e-05,2]
[348194035,1736379034658,-500.0,9.997e-05,2]
[348194037,1736379034666,-500.0,9.997e-05,2]
[348194039,1736379034673,-500.0,9.997e-05,2]
[348194040,1736379034681,-500.0,9.997e-05,2]
[348194042,1736379034690,-500.0,9.997e-05,2]
[348194044,1736379034700,-667.58,9.997e-05,2]
[348194046,1736379034709,-500.0,9.997e-05,2]
[348194048,1736379034718,-500.0,9.997e-05,2]
[348194050,1736379034727,-500.0,9.997e-05,2]
[348194052,1736379034736,-500.0,9.997e-05,2]
[348194054,1736379034746,-500.0,9.997e-05,2]
[348194056,1736379034755,-500.0,9.997e-05,2]
[348194058,1736379034764,-500.0,9.997e-05,2]
[348194060,1736379034774,-500.0,9.997e-05,2]
[348194062,1736379034783,-500.0,9.997e-05,2]
[348194064,1736379034792,-500.0,9.997e-05,2]
[348194065,1736379034801,-500.0,9.997e-05,2]
[348194066,1736379034810,-629.83,9.997e-05,2]
[348194067,1736379034820,-791.11,9.997e-05,2]
[348194068,1736379034829,-500.0,9.997e-05,2]
[348194069,1736379034838,-1326.22,9.997e-05,2]
[348194070,1736379034847,-521.31,9.997e-05,2]
[348194071,1736379034857,-500.0,9.997e-05,2]
[348194072,1736379034867,-666.23,9.997e-05,2]
[348194073,1736379034877,-500.0,9.997e-05,2]
[348194074,1736379034886,-500.0,9.997e-05,2]
[348194075,1736379034896,-500.0,9.997e-05,2]
[348194076,1736379034905,-500.0,9.997e-05,2]
[348194077,1736379034915,-500.0,9.997e-05,2]
[348194078,1736379034924,-500.0,9.997e-05,2]
[348194079,1736379034933,-767.81,9.997e-05,2]
[348194080,1736379034943,-500.0,9.997e-05,2]
[348194081,1736379034952,-305.49416327,9.997e-05,2]
[348194082,1736379034961,-500.0,9.997e-05,2]
[348194083,1736379034971,-500.0,9.997e-05,2]
[348194084,1736379034980,-2744.74,9.997e-05,2]
[348194085,1736379034990,-500.0,9.997e-05,2]
[348194086,1736379034999,-500.0,9.997e-05,2]
[348194087,1736379035008,-536.29,9.997e-05,2]
[348194088,1736379035019,-500.0,9.997e-05,2]
[348194089,1736379035029,-583.2,9.997e-05,2]
[348194090,1736379035039,-707.91,9.997e-05,2]
[348194091,1736379035048,-500.0,9.997e-05,2]
[348194092,1736379035058,-1364.77,9.997e-05,2]
[348194093,1736379035068,-500.0,9.997e-05,2]
[348194094,1736379035077,-500.0,9.997e-05,2]
[348194095,1736379035087,-500.0,9.997e-05,2]
[348194096,1736379035097,-500.0,9.997e-05,2]
[348194097,1736379035106,-500.0,9.997e-05,2]
[348194098,1736379035115,-639.61,9.997e-05,2]
[348194099,1736379035125,-2084.01,9.997e-05,2]
[348194100,1736379035135,-500.0,9.997e-05,2]
[348194101,1736379035145,-500.0,9.997e-05,2]
[348194102,1736379035155,-500.0,9.997e-05,2]
[348194103,1736379035165,-500.0,9.997e-05,2]
[348194104,1736379035175,-649.41,9.997e-05,2]
[348194105,1736379035184,-1030.88,9.997e-05,2]
[348194106,1736379035194,-500.0,9.997e-05,2]
[348194107,1736379035203,-500.0,9.997e-05,2]
[348194108,1736379035212,-713.61,9.997e-05,2]
[348194109,1736379035222,-1471.83,9.997e-05,2]
[348194110,1736379035232,-958.74,9.997e-05,2]
[348194111,1736379035241,-500.0,9.997e-05,2]
[348194112,1736379035251,-500.0,9.997e-05,2]
[348194113,1736379035261,-500.0,9.997e-05,2]
[348194114,1736379035271,-2505.97,9.997e-05,2]
[348194115,1736379035280,-500.0,9.997e-05,2]
[348194116,1736379035289,-500.0,9.997e-05,2]
[348194117,1736379035299,-500.0,9.997e-05,2]
[348194118,1736379035308,-590.82,9.997e-05,2]
[348194119,1736379035318,-1447.93,9.997e-05,2]
[348194120,1736379035327,-2980.99,9.997e-05,2]
[348194121,1736379035338,-500.0,9.997e-05,2]
[348194122,1736379035348,-500.0,9.997e-05,2]
[348194123,1736379035357,-779.82,9.997e-05,2]
[348194124,1736379035367,-500.0,9.997e-05,2]
[348194125,1736379035376,-633.71,9.997e-05,2]
[348194126,1736379035385,-500.0,9.997e-05,2]
[348194127,1736379035395,-500.0,9.997e-05,2]
[348194128,1736379035405,-500.0,9.997e-05,2]
[348194129,1736379035414,-2127.56,9.997e-05,2]
[348194130,1736379035424,-500.0,9.997e-05,2]
[348194131,1736379035434,-500.0,9.997e-05,2]
[348194132,1736379035443,-500.0,9.997e-05,2]
[348194133,1736379035453,-500.0,9.997e-05,2]
[348194134,1736379035463,-2105.99,9.997e-05,2]
[348194135,1736379035473,-2105.99,9.997e-05,2]
[348194136,1736379035483,-587.26,9.997e-05,2]
[348194137,1736379035493,-500.0,9.997e-05,2]
[348194138,1736379035504,-500.0,9.997e-05,2]
[348194139,1736379035515,-500.0,9.997e-05,2]
[348194140,1736379035525,-1217.0,9.997e-05,2]
[348194141,1736379035734,-500.0,9.997e-05,2]
[348194142,1736379035743,-500.0,9.997e-05,2]
[348194143,1736379035754,-500.0,9.997e-05,2]
[348194144,1736379035764,-504.72,9.997e-05,2]
[348194145,1736379035775,-500.0,9.997e-05,2]
[348194146,1736379035785,-500.0,9.997e-05,2]
[348194147,1736379035794,-500.0,9.997e-05,2]
[348194148,1736379035804,-352.56061788,9.997e-05,2]
[348194149,1736379035813,-500.0,9.997e-05,2]
[348194150,1736379035822,-500.0,9.997e-05,2]
[348194151,1736379035831,-500.0,9.997e-05,2]
[348194152,1736379035841,-691.14,9.997e-05,2]
[348194153,1736379035851,-500.0,9.997e-05,2]
[348194154,1736379035861,-635.18,9.998e-05,2]
[348194155,1736379035870,-500.0,9.998e-05,2]
[348194156,1736379035880,-1352.6,9.998e-05,2]
[348194157,1736379035890,-500.0,9.998e-05,2]
[348194158,1736379035899,-735.22,9.998e-05,2]
[348194159,1736379035909,-500.0,9.998e-05,2]
[348194160,1736379035918,-621.63,9.998e-05,2]
[348194161,1736379035928,-1338.15,9.998e-05,2]
[348194162,1736379035938,-1625.64,9.998e-05,2]
[348194163,1736379035947,-2198.19,9.998e-05,2]
[348194164,1736379035957,-4412.07,9.998e-05,2]
[348194165,1736379035967,-568.79,9.998e-05,2]
[348194166,1736379035977,-1000.0,9.998e-05,2]
[348194167,1736379035986,-2956.57,9.998e-05,2]
[348194168,1736379035996,-500.65,9.998e-05,2]
[348194169,1736379036005,-500.0,9.998e-05,2]
[348194170,1736379036014,-607.32,9.998e-05,2]
[348194171,1736379036024,-500.0,9.998e-05,2]
[348194172,1736379036034,-734.79,9.998e-05,2]
[348194173,1736379036043,-1048.0,9.998e-05,2]
[348194174,1736379036053,-976.43,9.998e-05,2]
[348194175,1736379036062,-2197.86,9.998e-05,2]
[348194176,1736379036071,-569.54,9.998e-05,2]
[348194177,1736379036081,-500.0,9.998e-05,2]
[348194178,1736379036091,-1120.0,9.998e-05,2]
[348194179,1736379036100,-508.98743759,9.999e-05,2]
[348194180,1736379036111,-500.0,9.999e-05,2]
[348194181,1736379036122,-500.0,9.999e-05,2]
[348194182,1736379036132,-500.0,9.999e-05,2]
[348194183,1736379036141,-500.0,9.999e-05,2]